Cogmind - Beta 14 @@@ ROGUE MODE // 2024.11.05 @ 03:59:23 Player: Ae Result: Destroyed by D-53 Grenadier with Mini Grenade Launcher Performance ------------- Evolutions (0) 0 Regions Visited (2) 400 Robots Destroyed (19) 95 Value Destroyed (329) 329 Prototype IDs (2) 40 Alien Tech Used (0) 0 Bonus (14) 14 TOTAL SCORE: 878 Bonus ------- Follower Combat Kills 14 Cogmind --------- Core Integrity 0/250 Matter 294/300 Energy 100/100 System Corruption 0% Temperature Cool (0) Movement Core (350) Ox6 Location -10/Mines Parts ------- > --- POWER (1) -------- (None) > --- PROPULSION (2) --- (None) > --- UTILITY (2) ------ Large Storage Unit > --- WEAPON (2) ------- (None) > --- INVENTORY (15) --- Ion Engine Light Treads Light Treads Wheel Compact Wheel Heat Sink Improved Heat Sink High-capacity Storage Unit Backup Plating I Hacking Suite Small Laser Particle Gun Light Assault Rifle Datajack Mining Laser Peak State ------------ > --- POWER ------------ Ion Engine > --- PROPULSION ------- Aluminum Leg Aluminum Leg > --- UTILITY ---------- Large Storage Unit Backup Plating I > --- WEAPON ----------- Light Assault Rifle Light Assault Rifle > --- INVENTORY -------- Ion Engine Light Treads Light Treads Wheel Compact Wheel Heat Sink Improved Heat Sink High-capacity Storage Unit Seismic Detector Hacking Suite Small Laser Particle Gun Light Assault Rifle Datajack Mining Laser [Rating: 9] Favorites ----------- Power Ion Engine Engine Ion Engine Propulsion Aluminum Leg Leg Aluminum Leg Utility Large Storage Unit Device Seismic Detector Storage Large Storage Unit Protection Backup Plating I Weapon Light Assault Rifle Energy Gun Small Laser Ballistic Gun Light Assault Rifle Special Weapon Mining Laser Build | -11 -10 -10 ------- Run | Yrd Mat Min Slots Evolved . | . . . Power . | . . . Propulsion . | . . . Utility . | . . . Weapon . | . . . Parts Attached 23 | 7 10 6 Power 3 | 1 . 2 Engine 3 | 1 . 2 Core . | . . . Reactor . | . . . Propulsion 6 | 2 2 2 Treads . | . . . Leg 6 | 2 2 2 Wheel . | . . . Hover . | . . . Flight . | . . . Utility 6 | 2 2 2 Device 2 | 1 . 1 Storage 3 | 1 2 . Processor . | . . . Hackware . | . . . Protection 1 | . . 1 Artifact . | . . . Weapon 8 | 2 6 . Energy Gun 3 | 1 2 . Energy Cannon . | . . . Ballistic Gun 4 | 1 3 . Ballistic Cannon . | . . . Launcher . | . . . Special Weapon 1 | . 1 . Impact Weapon . | . . . Slashing Weapon . | . . . Piercing Weapon . | . . . Special Melee Weapon . | . . . Unidentified Prototypes . | . . . Parts Lost 10 | . 1 9 Power 2 | . . 2 Propulsion 3 | . . 3 Utility 2 | . . 2 Weapon 3 | . 1 2 Highest Loss Streak 6 | . 1 6 To Critical Strikes . | . . . Average Slot Usage (%) 99 | . 99 98 Engine 13 | . 14 13 Leg 27 | . 28 27 Device 9 | . 10 9 Storage 14 | . 14 14 Protection 4 | . 3 4 Energy Gun 5 | . 8 . Ballistic Gun 20 | . 16 28 Special Weapon 1 | . 2 . Peak Build Rating 9 | 7 8 9 Average Rating 7 | 5 7 8 On Entrance 5 | . 7 8 Naked Turns . | . . . Heaviest Build 28 | 13 28 28 Greatest Support 20 | 20 20 20 Greatest Overweight (x) 2 | . 1 2 Average Overweight (x) . | . . 1 Largest Inventory Capacity 20 | 8 20 15 Average Capacity 14 | 7 14 15 Most Carried 15 | 7 15 15 Average Carried 12 | 5 11 14 Final Capacity 15 | 8 15 15 Final Carried 15 | 7 15 15 Class Distribution -------------------- 65% | Mutant 34% | Scavenger-Mutant Dominant Class ---------------- Mutant | -10/Materials Scavenger-Mutant | -10/Mines Resources | -11 -10 -10 ----------- Run | Yrd Mat Min Matter Collected 471 | 284 80 107 Remotely . | . . . Salvage Created 517 | 154 269 94 Parts 45 | 14 27 4 Haulers Intercepted . | . . . Recyclers Shooed 1 | . 1 . Parts Field Recycled . | . . . Retrieved Matter . | . . . Parts Self-Destructed . | . . . Prevented . | . . . Kills | -11 -10 -10 ------- Run | Yrd Mat Min Combat Hostiles Destroyed 14 | . 12 2 Guns 14 | . 12 2 Classes Destroyed 5 | 2 3 . Tunneler 3 | 3 . . Recycler 1 | 1 . . Operator 1 | . 1 . Swarmer 9 | . 9 . Grunt 5 | . 3 2 Best Kill Streak 4 | 4 3 2 Combat Bots Only 3 | . 3 2 Max Kills in Single Turn 1 | 1 1 1 Gunslinging . | . . . Exploded . | . . . Melee . | . . . Uniques/NPCs Destroyed . | . . . Combat | -11 -10 -10 -------- Run | Yrd Mat Min Hostile Shots Fired 126 | . 98 28 Missed 31 | . 28 3 Damage Taken 1301 | . 639 662 Core 254 | . 140 114 Absorbed by Shields . | . . . Core Remaining (%) 100 | 100 . . Volleys Fired 91 | 14 63 14 Largest 2 | 2 2 2 Hottest 100 | 60 100 40 Shots Fired 164 | 28 108 28 Gun 151 | 28 95 28 Cannon . | . . . Launcher . | . . . Special 13 | . 13 . Kinetic 97 | 14 55 28 Thermal 67 | 14 53 . Explosive . | . . . Electromagnetic . | . . . Robot Hit Streak 10 | 4 8 10 Robot Miss Streak 8 | 1 8 3 Penetration Max . | . . . Secondary Targets 1 | . 1 . Max Gunslinging Chain 1 | . 1 . Shots Hit Robots 85 | 17 50 18 Core Hits 39 | 6 26 7 Critical Kills . | . . . Critical Parts Destroyed 2 | . 1 1 Critical Strikes 2 | . 1 1 Destroy 2 | . 1 1 Melee Attacks . | . . . Impact . | . . . Slashing . | . . . Piercing . | . . . Sneak Attacks . | . . . Combat Hostiles . | . . . Follow-up Attacks . | . . . Damage Inflicted 822 | 169 515 138 Guns 798 | 169 491 138 Cannons . | . . . Explosions . | . . . Melee . | . . . Ramming . | . . . Kinetic 398 | 47 213 138 Thermal 424 | 122 302 . Explosive . | . . . Electromagnetic . | . . . Impact . | . . . Slashing . | . . . Piercing . | . . . Highest Corruption . | . . . Average Corruption . | . . . Corruption Purged . | . . . Corruption Blocked . | . . . Overload Shots . | . . . Overflow Damage . | . . . Projectiles . | . . . Explosions . | . . . Melee . | . . . Knockbacks . | . . . Impact . | . . . Kinetic . | . . . Secondary . | . . . Self-Inflicted Damage . | . . . Shots . | . . . Rammed . | . . . Targets Rammed . | . . . Kicked . | . . . Crushed . | . . . Highest Temperature 144 | 60 144 29 Average Temperature 37 | 28 43 9 Received Heat Transfer 275 | . 114 161 Siege Activations . | . . . Robots Corrupted . | . . . Combat Hostiles . | . . . Parts Fried . | . . . Impact Corruptions . | . . . Robots Melted . | . . . Combat Hostiles . | . . . Parts Melted . | . . . Heat Transferred 950 | 275 675 . Parts Sabotaged . | . . . Parts Stolen . | . . . Parts Stripped . | . . . Power Chain Reactions . | . . . Alert | -11 -10 -10 ------- Run | Yrd Mat Min Peak Influence 303 | 20 303 86 Initial 66 | . 13 66 Average 91 | 7 117 56 Maximum Alert Level 1 | . 1 . Low Security (%) 94 | 100 90 100 Level 1 5 | . 9 . Level 2 . | . . . Level 3 . | . . . Level 4 . | . . . Level 5 . | . . . High Security . | . . . Max Security . | . . . Squads Dispatched . | . . . Investigation . | . . . Extermination . | . . . Reinforcement . | . . . Assault . | . . . Garrison . | . . . Intercept . | . . . Searches Triggered . | . . . Construction Impeded . | . . . Haulers Reinforced . | . . . Active Scanning Responses . | . . . Cargo Convoy Interrupts . | . . . Stealth | -11 -10 -10 --------- Run | Yrd Mat Min Distress Signals 4 | . 4 . Communications Jammed . | . . . Distress Signals . | . . . Times Spotted 30 | . 22 8 Peak Tracking Total 7 | . 7 5 Tactical Retreats 5 | . 5 . Traps | -11 -10 -10 ------- Run | Yrd Mat Min Traps Triggered . | . . . Indirectly . | . . . Trap Hack Attempts . | . . . Triggered . | . . . Disarmed . | . . . Reprogrammed . | . . . Reused . | . . . Traps Extracted . | . . . Installed . | . . . Triggered . | . . . Machines | -11 -10 -10 ---------- Run | Yrd Mat Min Machines Disabled . | . . . Max in Single Turn . | . . . Machines Repaired . | . . . Machines Dismantled . | . . . Machines Sabotaged . | . . . Overloaded Fab Kills . | . . . Hacking | -11 -10 -10 --------- Run | Yrd Mat Min Machines Accessed 9 | . 9 . Terminals 8 | . 8 . Fabricators . | . . . Repair Stations 1 | . 1 . Recycling Units . | . . . Scanalyzers . | . . . Garrison Access . | . . . Total Hacks 27 | . 27 . Successful 17 | . 17 . Failed 10 | . 10 . Catastrophic . | . . . Database Lockouts . | . . . Manual 16 | . 16 . Terminals 23 | . 23 . Fabricators . | . . . Repair Stations 4 | . 4 . Recycling Units . | . . . Scanalyzers . | . . . Garrison Access . | . . . Terminal Hacks 4 | . 4 . Robot Analysis 1 | . 1 . Prototype ID Bank 1 | . 1 . Maintenance Status 1 | . 1 . Transport Status 1 | . 1 . Fabricator Hacks . | . . . Repair Station Hacks 2 | . 2 . Refit 2 | . 2 . Recycling Unit Hacks . | . . . Scanalyzer . | . . . Garrison Access Hacks . | . . . Unauthorized Hacks 11 | . 11 . Terminals 11 | . 11 . Botnet 5 | . 5 . Skim 6 | . 6 . Fabricators . | . . . Repair Stations . | . . . Recycling Units . | . . . Scanalyzers . | . . . Garrison Access . | . . . Data Cores Recovered . | . . . Used . | . . . Hacking Detections 8 | . 8 . Full Trace Events . | . . . Feedback Events . | . . . Feedback Blocked . | . . . Robot Schematics Acquired . | . . . Robots Built . | . . . Authchips . | . . . Time . | . . . Total Robot Build Rating . | . . . Part Schematics Acquired . | . . . Parts Built . | . . . Authchips . | . . . Time . | . . . Total Part Build Rating . | . . . Parts Repaired . | . . . Time . | . . . Parts Recycled . | . . . Recycled Matter . | . . . Retrieved Matter . | . . . Retrieved Components . | . . . Parts Scanalyzed . | . . . Part Schematics Acquired . | . . . Parts Damaged . | . . . Bothacking | -11 -10 -10 ------------ Run | Yrd Mat Min Used RIF Installer . | . . . Robots Hacked . | . . . Non-combat . | . . . Combat . | . . . Robot Hacks Applied . | . . . Relay Couplers Released . | . . . Fabnet Peak Effective % . | . . . Robots Rewired . | . . . Allies Hacked . | . . . Hacks Repelled . | . . . Allies | -11 -10 -10 -------- Run | Yrd Mat Min Total Allies 3 | . . 3 Largest Group 3 | . . 3 Highest-Rated Group 40 | . . 40 Highest-Rated Ally 16 | . . 16 Total Orders . | . . . Ally Attacks 8 | . . 8 Total Damage 105 | . . 105 Kills 2 | . . 2 Allies Corrupted . | . . . Allies Melted . | . . . Intel | -11 -10 -10 ------- Run | Yrd Mat Min Robot Analysis Total 1 | . 1 . Derelict Logs Recovered 1 | . . 1 Drone Launches . | . . . Drone Recoveries . | . . . Exploration | -11 -10 -10 ------------- Run | Yrd Mat Min Turns Passed 1898 | 143 1184 571 Spaces Moved 854 | 76 506 272 Core 7 | 7 . . Treads . | . . . Legs 847 | 69 506 272 Wheels . | . . . Hover . | . . . Flight . | . . . Fastest Speed 50 | 50 120 190 Average Speed 181 | 113 187 190 Slowest Speed 260 | 120 190 260 Overloaded Moves . | . . . Propulsion Burnouts . | . . . Robots Hopped . | . . . Cave-ins Triggered . | . . . Exploration Rate (%) 48 | 5 80 60 Regions Visited 2 Branch Regions 1 Pre-discovered Areas 1 | . 1 . Known Exits Taken . | . . . Unknown Exits Taken 2 | 1 1 . Scrap Searched . | . . . Spaces Dug 6 | . 6 . Terrain Destroyed 11 | . 11 . Melee . | . . . Projectile 11 | . 11 . AOE . | . . . Terrain Rammed . | . . . Walls Destroyed . | . . . Machines Disabled . | . . . Actions | -11 -10 -10 --------- Run | Yrd Mat Min Total 1029 | 104 623 302 Wait 30 | . 23 7 Move 852 | 75 505 272 Hop . | . . . Pick Up 21 | 8 11 2 Fast Attach 6 | 6 . . Attach 6 | 1 2 3 Detach 2 | . 2 . Swap 11 | . 8 3 Drop 10 | . 9 1 Fire 91 | 14 63 14 Melee . | . . . Ram . | . . . Kick . | . . . Crush . | . . . Escape Stasis . | . . . Rewire . | . . . Trap . | . . . Miscellaneous . | . . . Route ------- -11/Scrapyard -10/Materials (discovered 4 exits: [*Mat x3] / [*Min]) -10/Mines (discovered 1 exit: [*Mat]) History --------- Turn | Location | Event 7 | -11/Scrapyard | Discovered new exit (range 15) 144 | -11/Scrapyard | Entered Materials 314 | -10/Materials | Build established: Mutant 356 | -10/Materials | Discovered new exit (range 13) 1056 | -10/Materials | Discovered new exit (range 14) 1087 | -10/Materials | Core integrity fell below 50% 1178 | -10/Materials | Discovered new exit (range 16) 1248 | -10/Materials | Learned location of Mines (-10) 1303 | -10/Materials | Discovered new exit (range 5) 1306 | -10/Materials | Loaded intel: 17 trap records 1328 | -10/Materials | Entered Mines 1469 | -10/Mines | Lost 3 parts (1p1n1u) 1619 | -10/Mines | Learned Materials interactive machine intel 1718 | -10/Mines | Assisted by bots powering up and referring to "LRC-V3" 1721 | -10/Mines | Build established: Scavenger-Mutant 1832 | -10/Mines | Discovered new exit (range 9) 1869 | -10/Mines | Assembled infested the area 1874 | -10/Mines | Assisted by a Guerilla fighting off Assembled 1888 | -10/Mines | Core integrity fell below 20% 1899 | -10/Mines | Destroyed by D-53 Grenadier with Mini Grenade Launcher Last Messages --------------- 01880_ HV Slug penetrates Earth. 01882_ HV Slug penetrates D-53 Grenadier. 01882_ D-53 Grenadier destroyed. 01886_ HV Slug penetrates Wall. 01887_ FY-VXL(h) destroyed. 01889_ The unstable cave ceiling collapses. 01889_ Aluminum Leg destroyed. 01889_ Trooper 1a destroyed. 01890_ The unstable cave ceiling collapses. 01891_ Lgt. Assault Rifle destroyed. 01893_ Seismic Detector destroyed. 01893_ as-26542 destroyed. 01894_ The unstable cave ceiling collapses. 01895_ U-05 Engineer builds a Wall. 01895_ Lgt. Assault Rifle destroyed. 01897_ The unstable cave ceiling collapses. 01897_ Cmb. Airjet crushed. 01897_ as-24593 destroyed. 01899_ The unstable cave ceiling collapses. 01899_ Aluminum Leg destroyed. Map ----- +----------------------------------------------------+ | | | | | | | | | | | | | | | | | | | ?????????????????????????????????????????????????? | | ?????????????????????????????????????????????????? | | ????????????????????????????????###??????????????? | | ???????????????????????????????? ##????????????? | | ???????????????????????????????? #????????????? | | ???????????????????????????????? ##???????????? | | ???????????????????????????????? #???????????? | | ????????????????????????????????# #???????????? | | ????????????????????????????????# #???????????? | | ???????????????????????????????## #???????????? | | ???????????????????????????????# #???????????? | | ??????????????????????????????? #???????????? | | ??????????????????????#####????? #???????????? | | ??????????????????##### ###?#? #???????????? | | ??????????????????# # # #?# < #???????????? | | ??????????????????# = % #### #????????????? | | ?????????????????## @ d%u % #?????????????? | | ?????????????????# a #;### #?????????????? | | ????????????????## #??# #?????????????? | | ????????????????# #a #??# #?????????????? | | ????????????????# # ##??# #?????????##### | | ????????????????# # ##???# #????????## | | ????????????????### ##????# ####?????# | | ????????????????? =% ##?????# #????## # | | ????????????????# ########??????##### #???## ## | | ????????????????# ??????????????????# #???# ## | | ???????????????? ???????????????????# ##### # | | ???????????????#????????????????????# ### | | ????????????????????????????????????### #?#### | | ??????????????????????????????????????# #????## | | ??????????????????????????????????????# #?????## | | ??????????????????????????????????????# #??????# | | ??????????????????????????????????????# ######## | | ??????????????????????????????????????# | | ??????????????????????????????????????############ | | ?????????????????????????????????????????????????# | | ?????????????????????????????????????????????????# | | ?????????????????????????????????????????????????# | | ?????????????????????????????????????????????????# | | ?????????????????????????????????????????????????# | | ?????????????????????????????????????????????????# | +----------------------------------------------------+ Best States ------------- Heat Dissipation 25 Energy Generation 10 Energy Capacity 250 Matter Stores 300 Matter Capacity 300 Sight Range 16 Terrain Scan Density 10 Armor Coverage 80 Evasion (%) 55 Item Schematics ----------------- None Robot Schematics ------------------ None Fabricated ------------ Nothing Alien Tech Used ----------------- None Achievements -------------- None Challenges ------------ None Game ------ Seed GravityPhysicsPick Manual? 0 Play Time 00:18:11 Cumulative 91.0 hours Start 2024.11.05 @ 03:43:31 End 2024.11.05 @ 03:59:23 Sessions 1 Manual Loads 0 Difficulty Rogue Special Mode None Game No. 153 Rogue 125 Adventurer 28 Explorer 0 Win Type - Total 0 Types 0/0/0/0/0/0/0/0/0 Lore% 35 Gallery% 31 Achievement% 33 Wizard Run 0 Options --------- Layout 0 ASCII 0 Keyboard 1 Movement Numpad Keybinds 0 Fullscreen 2 Font 36/Smallcaps Map View 76x50 Zoom Use 0% Tactical HUD 1 Map Filters NONE Filters NONE Steam 1 RUN: 5b229e8e-57fc-4c21-b49b-44991bfeaaa8